fUST/lending_fUST_20241230
["ID","MTS","AMOUNT","RATE_DAILY","PERIOD"]
[347193230,1735557036088,-501.74947503,0.0001233,2]
[347193231,1735557036098,-270.81242242,0.0001233,2]
[347193232,1735557036109,-500.0,0.0001233,2]
[347193233,1735557036118,-500.0,0.0001233,2]
[347193234,1735557036127,-500.0,0.0001233,2]
[347193235,1735557036136,-500.0,0.0001233,2]
[347193236,1735557036146,-500.0,0.0001233,2]
[347193237,1735557036155,-544.50213214,0.0001233,2]
[347193238,1735557036164,-500.80629639,0.0001233,2]
[347193239,1735557036173,-500.0,0.0001233,2]
[347193240,1735557036183,-500.96620685,0.0001233,2]
[347193241,1735557036193,-505.15418948,0.0001233,2]
[347193242,1735557036202,-617.88157464,0.0001233,2]
[347193243,1735557036211,-500.0,0.0001233,2]
[347193244,1735557036221,-500.52101286,0.0001233,2]
[347193245,1735557036230,-501.60524402,0.0001233,2]
[347193246,1735557036240,-500.0,0.0001233,2]
[347193247,1735557036253,-500.0,0.0001233,2]
[347193248,1735557036263,-500.0,0.0001233,2]
[347193249,1735557036272,-500.0,0.0001233,2]
[347193250,1735557036282,-500.0,0.0001233,2]
[347193251,1735557036291,-500.78294876,0.0001233,2]
[347193252,1735557036303,-635.3,0.0001233,2]
[347193253,1735557036312,-500.0,0.0001233,2]
[347193254,1735557036322,-500.0,0.0001233,2]
[347193255,1735557036332,-500.0,0.0001233,2]
[347193256,1735557036341,-500.0,0.0001233,2]
[347193257,1735557036354,-500.0,0.0001233,2]
[347193258,1735557036363,-89.42989457,0.0001233,2]
[347193259,1735557036376,-410.99548619,0.0001233,2]
[347193260,1735557036385,-500.0,0.0001233,2]
[347193261,1735557036396,-500.0,0.0001233,2]
[347193262,1735557036406,-500.37836057,0.0001233,2]
[347193263,1735557036415,-500.0,0.0001233,2]
[347193264,1735557036424,-502.23572272,0.0001233,2]
[347193265,1735557036434,-525.91930928,0.0001233,2]
[347193266,1735557036443,-500.0,0.0001233,2]
[347193267,1735557036452,-500.23145671,0.0001233,2]
[347193268,1735557036461,-500.0,0.0001233,2]
[347193269,1735557036470,-500.0,0.0001233,2]
[347193270,1735557036479,-500.0,0.0001233,2]
[347193271,1735557036488,-501.3182311,0.0001233,2]
[347193272,1735557036498,-500.0,0.0001233,2]
[347193273,1735557036507,-500.57577732,0.0001233,2]
[347193274,1735557036516,-500.31788548,0.0001233,2]
[347193275,1735557036525,-500.0,0.0001233,2]
[347193276,1735557036534,-502.09567895,0.0001233,2]
[347193277,1735557036543,-500.0,0.0001233,2]
[347193278,1735557036552,-500.0,0.0001233,2]
[347193279,1735557036561,-501.64253892,0.0001233,2]
[347193280,1735557036571,-500.52754916,0.0001233,2]
[347193281,1735557036580,-500.0,0.0001233,2]
[347193282,1735557036589,-501.61669338,0.0001233,2]
[347193283,1735557036598,-500.1747361,0.0001233,2]
[347193284,1735557036608,-500.0,0.0001233,2]
[347193285,1735557036618,-502.76336571,0.0001233,2]
[347193286,1735557036627,-500.0,0.0001233,2]
[347193287,1735557036637,-500.0,0.0001233,2]
[347193288,1735557036646,-500.0,0.0001233,2]
[347193289,1735557036656,-501.31129038,0.0001233,2]
[347193290,1735557036665,-501.80478283,0.0001233,2]
[347193291,1735557036674,-500.0,0.0001233,2]
[347193292,1735557036684,-500.23829805,0.0001233,2]
[347193293,1735557036693,-500.0,0.0001233,2]
[347193294,1735557036702,-500.0,0.0001233,2]
[347193295,1735557036711,-500.0,0.0001233,2]
[347193296,1735557036721,-500.0,0.0001233,2]
[347193297,1735557036730,-500.0,0.0001233,2]
[347193298,1735557036740,-501.99199146,0.0001233,2]
[347193299,1735557036751,-500.7511855,0.0001233,2]
[347193300,1735557036760,-500.66916425,0.0001233,2]
[347193301,1735557036769,-500.0,0.0001233,2]
[347193302,1735557036778,-544.69696242,0.0001233,2]
[347193303,1735557036787,-501.73570251,0.0001233,2]
[347193304,1735557036797,-500.0,0.0001233,2]
[347193305,1735557036807,-500.0,0.0001233,2]
[347193306,1735557036816,-500.0,0.0001233,2]
[347193307,1735557036825,-500.0,0.0001233,2]
[347193308,1735557036835,-500.0,0.0001233,2]
[347193309,1735557036844,-500.0,0.0001233,2]
[347193310,1735557036853,-525.59254006,0.0001233,2]
[347193311,1735557036863,-500.0,0.0001233,2]
[347193312,1735557036872,-500.0,0.0001233,2]
[347193313,1735557036882,-500.0,0.0001233,2]
[347193314,1735557036891,-500.6222109,0.0001233,2]
[347193315,1735557036900,-500.583539,0.0001233,2]
[347193316,1735557036909,-501.25232172,0.0001233,2]
[347193317,1735557036919,-500.0,0.0001233,2]
[347193318,1735557036928,-494.7567196,0.0001233,2]
[347193319,1735557036937,-516.32278798,0.0001233,2]
[347193320,1735557036947,-503.10011867,0.0001233,2]
[347193321,1735557036956,-554.58972044,0.0001233,2]
[347193322,1735557037047,-500.0,0.0001233,2]
[347193323,1735557037058,-500.0,0.0001233,2]
[347193324,1735557037067,-502.9178807,0.0001233,2]
[347193325,1735557037076,-500.0,0.0001233,2]
[347193326,1735557037086,-502.27891798,0.0001233,2]
[347193327,1735557037095,-500.0,0.0001233,2]
[347193328,1735557037104,-500.0,0.0001233,2]
[347193329,1735557037114,-500.0,0.0001233,2]
[347193330,1735557037123,-500.0,0.0001233,2]
[347193331,1735557037133,-500.0,0.0001233,2]
[347193332,1735557037142,-934.98,0.0001233,2]
[347193333,1735557037151,-379.95692816,0.0001233,2]
[347193354,1735557038413,-120.04307184,0.0001233,2]
[347193356,1735557038423,-502.95489675,0.0001233,2]
[347193358,1735557038433,-500.0,0.0001233,2]
[347193360,1735557038443,-500.0,0.0001233,2]
[347193362,1735557038453,-500.0,0.0001233,2]
[347193364,1735557038462,-365.06935405,0.0001233,2]
[347193366,1735557038471,-1082.46,0.0001233,2]
[347193368,1735557038481,-417.76680384,0.0001233,2]
[347193370,1735557038490,-500.89940823,0.0001233,2]
[347193372,1735557038500,-500.93767852,0.0001233,2]
[347193374,1735557038509,-500.0,0.0001233,2]
[347193376,1735557038519,-500.0,0.0001233,2]
[347193378,1735557038528,-500.0,0.0001233,2]
[347193380,1735557038537,-500.0,0.0001233,2]
[347193382,1735557038547,-500.0,0.0001233,2]
[347193384,1735557038556,-500.0,0.0001233,2]
[347193386,1735557038565,-500.98345046,0.0001233,2]
[347193388,1735557038574,-500.0,0.0001233,2]
[347193390,1735557038582,-500.88397465,0.0001233,2]
[347193392,1735557038591,-496.37974095,0.0001233,2]
[347193394,1735557038600,-501.90084833,0.0001233,2]
[347193396,1735557038609,-500.0,0.0001233,2]
[347193398,1735557038618,-500.0,0.0001233,2]
[347193400,1735557038627,-500.93117297,0.0001233,2]
[347193402,1735557038636,-500.0,0.0001233,2]
[347193404,1735557038646,-500.4765848,0.0001233,2]
[347193406,1735557038655,-500.8406361,0.0001233,2]
[347193408,1735557038664,-500.0,0.0001233,2]
[347193410,1735557038673,-500.0,0.0001233,2]
[347193412,1735557038683,-500.0,0.0001233,2]
[347193414,1735557038692,-645.10167563,0.0001233,2]
[347193416,1735557038702,-500.95652555,0.0001233,2]
[347193418,1735557038711,-501.90261125,0.0001233,2]
[347193420,1735557038720,-500.0,0.0001233,2]
[347193422,1735557038729,-500.43843458,0.0001233,2]
[347193424,1735557038739,-500.0,0.0001233,2]
[347193426,1735557038748,-500.0,0.0001233,2]
[347193428,1735557038756,-500.31575429,0.0001233,2]
[347193430,1735557038765,-2120.99,0.0001233,2]
[347193432,1735557038775,-501.20344896,0.0001233,2]
[347193434,1735557038784,-500.0,0.0001233,2]
[347193436,1735557038792,-500.0800814,0.0001233,2]
[347193438,1735557038801,-500.0,0.0001233,2]
[347193440,1735557038811,-6268.24,0.0001233,2]
[347193442,1735557038820,-500.0,0.0001233,2]
[347193444,1735557038828,-500.24294351,0.0001233,2]
[347193446,1735557038838,-500.0,0.0001233,2]
[347193448,1735557038847,-643.42585848,0.0001233,2]
[347193450,1735557038856,-500.0,0.0001233,2]
[347193452,1735557038865,-500.86935964,0.0001233,2]
[347193454,1735557038874,-500.0,0.0001233,2]
[347193456,1735557038883,-500.0,0.0001233,2]
[347193458,1735557038893,-503.94390834,0.0001233,2]
[347193460,1735557038902,-500.39211905,0.0001233,2]
[347193462,1735557038911,-4662.91,0.0001233,2]
[347193464,1735557038921,-501.36039727,0.0001233,2]
[347193466,1735557038929,-500.0,0.0001233,2]
[347193468,1735557038938,-500.0,0.0001233,2]
[347193470,1735557038948,-500.0,0.00012331,2]
[347193472,1735557038957,-500.0,0.00012331,2]
[347193474,1735557038967,-500.0,0.00012331,2]
[347193476,1735557038976,-500.0,0.00012331,2]
[347193478,1735557038985,-500.0,0.00012331,2]
[347193480,1735557038995,-500.0,0.00012331,2]
[347193482,1735557039005,-495.09089011,0.00012331,2]
[347193484,1735557039013,-500.0,0.00012331,2]
[347193486,1735557039023,-500.0,0.00012331,2]
[347193488,1735557039032,-500.0,0.00012331,2]
[347193490,1735557039041,-65.1924276,0.00012331,2]
[347193491,1735557039138,-434.8075724,0.00012331,2]
[347193492,1735557039147,-500.0,0.00012331,2]
[347193493,1735557039156,-502.51047285,0.00012331,2]
[347193494,1735557039166,-282.49108368,0.00012331,2]
[347193495,1735557039176,-506.88225391,0.00012331,2]
[347193496,1735557039185,-478.04794181,0.00012331,2]
[347193497,1735557039194,-461.25273725,0.00012331,2]
[347193498,1735557039215,-44.78700458,0.00012331,2]
[347193499,1735557039224,-500.0,0.00012331,2]
[347193500,1735557039234,-572.76431469,0.00012331,2]
[347193501,1735557039243,-500.0,0.00012331,2]
[347193502,1735557039254,-500.0,0.00012331,2]
[347193503,1735557039264,-214.27216354,0.00012331,2]
[347193504,1735557039274,-500.96026109,0.00012331,2]
[347193505,1735557039284,-583.23115109,0.00012331,2]
[347193506,1735557039293,-507.25396928,0.00012331,2]
[347193507,1735557039303,-500.0,0.00012331,2]
[347193508,1735557039312,-500.0,0.00012331,2]
[347193509,1735557039322,-500.0,0.00012331,2]
[347193510,1735557039331,-500.0,0.00012331,2]
[347193511,1735557039341,-500.0,0.00012331,2]
[347193512,1735557039353,-500.0,0.00012331,2]
[347193513,1735557039363,-417.19601857,0.00012331,2]
[347193514,1735557039373,-500.0,0.00012331,2]
[347193515,1735557039383,-503.81998036,0.00012331,2]
[347193516,1735557039392,-500.0,0.00012331,2]
[347193517,1735557039402,-500.0,0.00012331,2]
[347193518,1735557039411,-500.0,0.00012331,2]
[347193519,1735557039422,-500.0,0.00012331,2]
[347193520,1735557039432,-500.0,0.00012331,2]
[347193521,1735557039442,-500.0,0.00012331,2]
[347193522,1735557039451,-500.0,0.00012331,2]
[347193523,1735557039460,-500.0,0.00012331,2]
[347193524,1735557039469,-500.0,0.00012331,2]
[347193525,1735557039478,-500.0,0.00012331,2]
[347193526,1735557039488,-575.43557147,0.00012331,2]
[347193527,1735557039499,-500.0,0.00012331,2]
[347193528,1735557039508,-504.59705988,0.00012331,2]
[347193529,1735557039517,-500.0,0.00012331,2]
[347193530,1735557039527,-500.0,0.00012331,2]
[347193531,1735557039536,-500.0,0.00012331,2]
[347193532,1735557039545,-500.0,0.00012331,2]
[347193533,1735557039555,-399.73258547,0.00012331,2]
[347193534,1735557039564,-500.0,0.00012331,2]
[347193535,1735557039573,-500.0,0.00012331,2]
[347193536,1735557039584,-505.74791748,0.00012331,2]
[347193537,1735557039594,-500.0,0.00012331,2]
[347193538,1735557039604,-500.0,0.00012331,2]
[347193539,1735557039614,-500.0,0.00012331,2]
[347193540,1735557039624,-500.0,0.00012331,2]
[347193541,1735557039633,-500.0,0.00012331,2]
[347193542,1735557039642,-500.0,0.00012331,2]
[347193543,1735557039652,-500.0,0.00012331,2]
[347193544,1735557039662,-500.0,0.00012331,2]
[347193545,1735557039671,-500.0,0.00012331,2]
[347193546,1735557039680,-500.0,0.00012331,2]
[347193547,1735557039690,-500.0,0.00012331,2]
[347193548,1735557039699,-500.0,0.00012331,2]
[347193549,1735557039709,-500.0,0.00012331,2]
[347193550,1735557039718,-500.0,0.00012331,2]
[347193551,1735557039727,-500.0,0.00012331,2]
[347193552,1735557039736,-500.0,0.00012331,2]
[347193553,1735557039746,-267.59197443,0.00012331,2]
[347193554,1735557039755,-502.04632583,0.00012331,2]
[347193555,1735557039765,-502.23939967,0.00012331,2]
[347193556,1735557039774,-500.0,0.00012331,2]
[347193557,1735557039784,-500.0,0.00012331,2]
[347193558,1735557039793,-500.0,0.00012331,2]
[347193559,1735557039803,-500.0,0.00012331,2]
[347193560,1735557039812,-500.0,0.00012331,2]
[347193561,1735557039822,-500.0,0.00012331,2]
[347193562,1735557039831,-500.0,0.00012331,2]
[347193563,1735557039840,-500.0,0.00012331,2]
[347193564,1735557039850,-501.2332454,0.00012331,2]
[347193565,1735557039859,-500.0,0.00012331,2]
[347193566,1735557039868,-500.0,0.00012331,2]
[347193570,1735557039877,-500.0,0.00012331,2]
[347193571,1735557039968,-500.0,0.00012331,2]
[347193572,1735557039977,-500.0,0.00012331,2]
[347193573,1735557039987,-500.0,0.00012331,2]
[347193574,1735557039996,-500.0,0.00012331,2]
[347193575,1735557040006,-500.0,0.00012331,2]
[347193576,1735557040015,-500.89251274,0.00012331,2]
[347193577,1735557040026,-500.0,0.00012331,2]
[347193578,1735557040035,-502.56951406,0.00012331,2]
[347193579,1735557040044,-500.0,0.00012331,2]
[347193580,1735557040053,-500.0,0.00012331,2]
[347193581,1735557040061,-500.0,0.00012331,2]
[347193582,1735557040071,-501.15531129,0.00012331,2]
[347193583,1735557040080,-544.58096834,0.00012331,2]
[347193584,1735557040089,-500.96150207,0.00012331,2]
[347193585,1735557040098,-500.0,0.00012331,2]
[347193586,1735557040108,-500.0,0.00012331,2]
[347193587,1735557040117,-500.0,0.00012331,2]
[347193588,1735557040126,-500.0,0.00012331,2]
[347193589,1735557040135,-570.43356481,0.00012331,2]
[347193590,1735557040144,-500.0,0.00012331,2]
[347193591,1735557040153,-500.0,0.00012331,2]
[347193592,1735557040162,-500.0,0.00012331,2]
[347193594,1735557040171,-500.0,0.00012331,2]
[347193596,1735557040180,-505.31232038,0.00012331,2]
[347193598,1735557040190,-500.0,0.00012331,2]
[347193600,1735557040199,-500.0,0.00012331,2]
[347193602,1735557040208,-501.01510061,0.00012331,2]
[347193603,1735557040217,-500.0,0.00012331,2]
[347193605,1735557040226,-500.0,0.00012331,2]
[347193607,1735557040235,-500.0,0.00012331,2]
[347193608,1735557040244,-500.0,0.00012331,2]
[347193610,1735557040254,-500.0,0.00012331,2]
[347193612,1735557040263,-500.0,0.00012331,2]
[347193613,1735557040272,-500.0,0.00012331,2]
[347193615,1735557040282,-500.0,0.00012331,2]
[347193617,1735557040291,-500.0,0.00012331,2]
[347193619,1735557040300,-500.0,0.00012331,2]
[347193620,1735557040309,-495.52,0.00012331,2]
[347193622,1735557040319,-500.0,0.00012331,2]
[347193623,1735557040328,-500.0,0.00012331,2]
[347193625,1735557040338,-500.0,0.00012331,2]
[347193626,1735557040351,-500.0,0.00012331,2]
[347193627,1735557040361,-500.0,0.00012331,2]
[347193629,1735557040370,-500.0,0.00012331,2]
[347193631,1735557040380,-500.0,0.00012331,2]
[347193633,1735557040390,-500.0,0.00012331,2]
[347193635,1735557040400,-500.0,0.00012331,2]
[347193637,1735557040410,-400.35011695,0.00012603,2]
[347193639,1735557040421,-500.0,0.00012603,2]
[347193640,1735557040431,-500.0,0.00012603,2]
[347193642,1735557040440,-500.0,0.00012603,2]
[347193643,1735557040450,-500.0,0.00012603,2]
[347193644,1735557040459,-500.0,0.00012603,2]
[347193645,1735557040468,-500.0,0.00012603,2]
[347193647,1735557040478,-500.0,0.00012604,2]
[347193649,1735557040487,-500.0,0.00012604,2]
[347193650,1735557040498,-358.34,0.00012604,2]
[347193651,1735557040508,-500.0,0.00012604,2]
[347193652,1735557040518,-500.0,0.00012604,2]
[347193653,1735557040528,-503.82876462,0.00012604,2]
[347193654,1735557040537,-500.0,0.00012604,2]
[347193655,1735557040547,-500.0,0.00012604,2]
[347193656,1735557040556,-500.0,0.00012604,2]
[347193657,1735557040568,-500.0,0.00012604,2]
[347193658,1735557040577,-500.0,0.00012604,2]
[347193659,1735557040586,-500.0,0.00012604,2]
[347193660,1735557040595,-487.06707841,0.00012604,2]
[347193661,1735557040604,-500.0,0.00012604,2]
[347193662,1735557040614,-500.0,0.00012604,2]
[347193663,1735557040623,-500.0,0.00012604,2]
[347193664,1735557040633,-500.0,0.00012604,2]
[347193665,1735557040643,-500.0,0.00012604,2]
[347193666,1735557040653,-287.66,0.00012604,2]
[347193667,1735557040663,-500.0,0.00012604,2]
[347193668,1735557040672,-500.0,0.00012604,2]
[347193669,1735557040681,-2610.6,0.00012604,2]
[347193670,1735557040692,-500.0,0.00012604,2]
[347193671,1735557040701,-502.23782275,0.00012604,2]
[347193672,1735557040710,-500.0,0.00012604,2]
[347193673,1735557040719,-500.0,0.00012604,2]
[347193674,1735557040728,-500.0,0.00012604,2]
[347193675,1735557040737,-500.0,0.00012604,2]
[347193676,1735557040746,-500.0,0.00012604,2]
[347193677,1735557040756,-500.0,0.00012604,2]
[347193678,1735557040765,-500.0,0.00012604,2]
[347193679,1735557040774,-500.0,0.00012604,2]
[347193680,1735557040783,-402.9,0.00012604,2]
[347193681,1735557040792,-515.97,0.00012604,2]
[347193682,1735557040801,-500.0,0.00012604,2]
[347193683,1735557040811,-934.98,0.00012604,2]
[347193684,1735557040821,-500.0,0.00012604,2]
[347193685,1735557040830,-500.0,0.00012604,2]
[347193686,1735557040839,-427.38573075,0.00012604,2]
[347193687,1735557040848,-1082.46,0.00012604,2]
[347193688,1735557040857,-500.0,0.00012604,2]
[347193689,1735557040867,-500.0,0.00012604,2]
[347193690,1735557040876,-500.0,0.00012604,2]
[347193691,1735557040885,-2120.99,0.00012604,2]
[347193692,1735557040894,-500.0,0.00012604,2]
[347193693,1735557040903,-6268.24,0.00012604,2]
[347193694,1735557040912,-500.0,0.00012604,2]
[347193695,1735557040922,-503.46576888,0.00012604,2]
[347193696,1735557040931,-500.0,0.00012604,2]
[347193697,1735557040940,-4662.91,0.00012604,2]
[347193698,1735557040949,-500.0,0.00012604,2]
[347193699,1735557040958,-500.0,0.00012604,2]
[347193700,1735557040967,-500.0,0.00012605,2]
[347193701,1735557040976,-502.71564011,0.00012605,2]
[347193702,1735557040986,-500.0,0.00012605,2]
[347193703,1735557040995,-500.0,0.00012605,2]
[347193704,1735557041006,-500.0,0.00012605,2]
[347193705,1735557041015,-503.44034283,0.00012605,2]
[347193706,1735557041024,-502.76494433,0.00012605,2]
[347193707,1735557041034,-304.77641913,0.00012605,2]
[347193708,1735557041044,-504.66936235,0.00012605,2]
[347193709,1735557041053,-266.03646334,0.00012605,2]
[347193710,1735557041063,-500.0,0.00012605,2]
[347193711,1735557041072,-500.0,0.00012605,2]
[347193712,1735557041081,-500.0,0.00012605,2]
[347193713,1735557041091,-500.0,0.00012605,2]
[347193714,1735557041100,-500.0,0.00012605,2]
[347193715,1735557041110,-500.0,0.00012605,2]
[347193716,1735557041119,-500.0,0.00012605,2]
[347193717,1735557041129,-500.0,0.00012605,2]
[347193718,1735557041139,-500.0,0.00012605,2]
[347193719,1735557041148,-500.0,0.00012605,2]
[347193720,1735557041157,-500.0,0.00012605,2]
[347193721,1735557041166,-500.0,0.00012605,2]
[347193722,1735557041175,-500.0,0.00012605,2]
[347193723,1735557041186,-504.350125,0.00012605,2]
[347193724,1735557041196,-500.0,0.00012605,2]
[347193725,1735557041205,-502.67664542,0.00012605,2]
[347193726,1735557041215,-500.0,0.00012605,2]
[347193727,1735557041224,-500.0,0.00012605,2]
[347193728,1735557041233,-500.0,0.00012605,2]
[347193729,1735557041243,-506.68054398,0.00012605,2]
[347193730,1735557041253,-504.46341365,0.00012605,2]
[347193731,1735557041263,-500.0,0.00012605,2]
[347193732,1735557041272,-500.0,0.00012605,2]
[347193733,1735557041281,-500.0,0.00012605,2]
[347193734,1735557041290,-500.0,0.00012605,2]
[347193735,1735557041300,-500.0,0.00012605,2]
[347193736,1735557041309,-500.0,0.00012605,2]
[347193737,1735557041318,-500.0,0.00012605,2]
[347193738,1735557041327,-500.0,0.00012605,2]
[347193739,1735557041336,-503.10665884,0.00012605,2]
[347193740,1735557041349,-500.0,0.00012605,2]
[347193741,1735557041359,-500.0,0.00012605,2]
[347193742,1735557041368,-500.0,0.00012605,2]
[347193743,1735557041378,-501.99531615,0.00012605,2]
[347193744,1735557041388,-500.0,0.00012605,2]
[347193745,1735557041397,-500.0,0.00012605,2]
[347193746,1735557041407,-500.75235751,0.00012605,2]
[347193747,1735557041416,-500.0,0.00012605,2]
[347193748,1735557041427,-500.0,0.00012605,2]
[347193749,1735557041436,-500.0,0.00012605,2]
[347193750,1735557041445,-500.0,0.00012605,2]
[347193751,1735557041454,-500.0,0.00012605,2]
[347193752,1735557041464,-500.0,0.00012605,2]
[347193753,1735557041474,-500.0,0.00012605,2]
[347193754,1735557041483,-500.0,0.00012605,2]
[347193755,1735557041493,-500.0,0.00012605,2]
[347193756,1735557041503,-514.42789578,0.00012605,2]
[347193757,1735557041513,-500.0,0.00012605,2]
[347193758,1735557041522,-501.35646241,0.00012605,2]
[347193759,1735557041533,-500.0,0.00012605,2]
[347193760,1735557041542,-500.0,0.00012605,2]
[347193761,1735557041552,-500.0,0.00012605,2]
[347193762,1735557041561,-500.0,0.00012605,2]
[347193763,1735557041570,-500.0,0.00012605,2]
[347193764,1735557041580,-500.0,0.00012605,2]
[347193765,1735557041589,-501.49298612,0.00012605,2]
[347193766,1735557041599,-500.0,0.00012605,2]
[347193767,1735557041608,-500.0,0.00012605,2]
[347193768,1735557041618,-500.0,0.00012605,2]
[347193769,1735557041628,-500.0,0.00012605,2]
[347193770,1735557041637,-500.0,0.00012605,2]
[347193771,1735557041647,-363.30281205,0.00012605,2]
[347193772,1735557041657,-500.0,0.00012605,2]
[347193773,1735557041666,-321.20013267,0.00012605,2]
[347193774,1735557041675,-539.43231961,0.00012605,2]
[347193775,1735557041685,-500.0,0.00012605,2]
[347193776,1735557041694,-500.0,0.00012605,2]
[347193777,1735557041704,-500.0,0.00012605,2]
[347193778,1735557041713,-500.75633386,0.00012605,2]
[347193779,1735557041723,-503.74446666,0.00012605,2]
[347193780,1735557041733,-448.81539609,0.00012873,2]
[347193781,1735557041743,-500.0,0.00012877,2]
[347193782,1735557041755,-318.85233997,0.00012877,2]
[347193783,1735557041764,-193.24833534,0.00012877,2]
[347193784,1735557041774,-500.0,0.00012877,2]
[347193785,1735557041784,-500.0,0.00012877,2]
[347193786,1735557041863,-500.0,0.00012877,2]
[347193787,1735557041873,-500.0,0.00012877,2]
[347193788,1735557041882,-500.0,0.00012877,2]
[347193789,1735557041892,-500.0,0.00012878,2]
[347193790,1735557041901,-500.0,0.00012878,2]
[347193791,1735557041911,-500.0,0.00012878,2]
[347193792,1735557041920,-503.40381298,0.00012878,2]
[347193793,1735557041929,-500.0,0.00012878,2]
[347193794,1735557041938,-500.0,0.00012878,2]
[347193795,1735557041947,-500.0,0.00012878,2]
[347193796,1735557041956,-500.0,0.00012878,2]
[347193797,1735557041965,-500.0,0.00012878,2]
[347193798,1735557041974,-500.0,0.00012878,2]
[347193799,1735557041983,-477.55,0.00012878,2]
[347193800,1735557041993,-500.0,0.00012878,2]
[347193801,1735557042003,-500.0,0.00012878,2]
[347193802,1735557042012,-500.0,0.00012878,2]
[347193803,1735557042021,-500.0,0.00012878,2]
[347193804,1735557042031,-500.0,0.00012878,2]
[347193805,1735557042040,-500.0,0.00012878,2]
[347193806,1735557042049,-500.0,0.00012878,2]
[347193807,1735557042059,-500.0,0.00012878,2]
[347193808,1735557042067,-609.45,0.00012878,2]
[347193809,1735557042076,-308.91178457,0.00012878,2]
[347193810,1735557042086,-285.98,0.00012878,2]
[347193811,1735557042095,-500.0,0.00012878,2]
[347193812,1735557042104,-500.0,0.00012878,2]
[347193813,1735557042113,-500.0,0.00012878,2]
[347193814,1735557042122,-500.0,0.00012878,2]
[347193815,1735557042132,-934.98,0.00012878,2]
[347193816,1735557042141,-500.0,0.00012878,2]
[347193817,1735557042150,-1082.46,0.00012878,2]
[347193818,1735557042159,-620.562192,0.00012878,2]
[347193819,1735557042168,-500.0,0.00012878,2]
[347193820,1735557042177,-454.24546935,0.00012878,2]
[347193821,1735557042186,-2120.99,0.00012878,2]
[347193822,1735557042195,-504.2968186,0.00012878,2]
[347193823,1735557042204,-6268.24,0.00012878,2]
[347193824,1735557042213,-503.50870849,0.00012878,2]
[347193825,1735557042222,-500.0,0.00012878,2]
[347193826,1735557042232,-4662.91,0.00012878,2]
[347193827,1735557042240,-242.23398464,0.00012878,2]
[347193828,1735557042261,-500.0,0.00012879,2]
[347193829,1735557042272,-499.03749296,0.00012879,2]
[347193830,1735557042282,-500.0,0.00012879,2]
[347193831,1735557042292,-175.94908437,0.00012879,2]
[347193832,1735557042301,-500.0,0.00012879,2]
[347193833,1735557042311,-500.0,0.00012879,2]
[347193834,1735557042321,-500.0,0.00012879,2]
[347193835,1735557042330,-500.0,0.00012879,2]
[347193836,1735557042341,-502.87896353,0.00012879,2]
[347193837,1735557042353,-517.47956583,0.00012879,2]
[347193838,1735557042363,-500.0,0.00012879,2]
[347193839,1735557042373,-500.0,0.00012879,2]
[347193840,1735557042383,-502.64986194,0.00012879,2]
[347193841,1735557042394,-500.0,0.00012879,2]
[347193842,1735557042403,-504.02993081,0.00012879,2]
[347193843,1735557042413,-500.0,0.00012879,2]